bitfinex/quotes_SOLUSD_20240726
["timestamp","ask_amount","ask_price","bid_price","bid_amount"]
[1721953518682,12.98,173.13,173.04,6.3465]
[1721953518683,12.98,173.13,173.07,12.98]
[1721953519592,12.98,173.13,173.04,6.3465]
[1721953519801,12.98,173.13,173.07,12.98]
[1721953520209,12.98,173.13,173.05,20.0]
[1721953520506,12.98,173.13,173.08,12.98]
[1721953520799,12.98,173.14,173.08,12.98]
[1721953521399,12.98,173.14,173.05,20.0]
[1721953521587,12.98,173.13,173.08,12.98]
[1721953521999,18.7561,173.13,173.05,20.0]
[1721953522200,12.98,173.12,173.07,12.98]
[1721953522381,12.98,173.12,173.06,12.98]
[1721953522705,12.98,173.11,173.07,20.0]
[1721953522888,18.7563,173.12,173.07,20.0]
[1721953523095,12.98,173.12,173.07,20.0]
[1721953524597,12.98,173.11,173.06,12.98]
[1721953524817,12.98,173.1,173.05,12.98]
[1721953525117,12.98,173.1,173.06,20.0]
[1721953526790,12.98,173.1,173.05,20.0]
[1721953527181,12.98,173.1,173.05,32.98]
[1721953527888,12.98,173.13,173.08,12.98]
[1721953528795,15.7588,173.2,173.09,12.98]
[1721953529008,12.98,173.14,173.09,12.98]
[1721953529216,12.98,173.14,173.08,12.98]
[1721953529428,5.7752,173.16,173.08,12.98]
[1721953529429,12.98,173.13,173.08,12.98]
[1721953529714,12.98,173.13,173.07,12.98]
[1721953529900,12.98,173.12,173.07,12.98]
[1721953530082,12.98,173.13,173.07,12.98]
[1721953530782,6.1815,173.19,173.1,12.98]
[1721953531011,21.74177777,173.2,173.08,20.0]
[1721953531012,15.7588,173.2,173.11,12.98]
[1721953531308,21.5327,173.2,173.13,12.98]
[1721953531514,21.5327,173.2,173.14,12.98]
[1721953531515,28.7388,173.2,173.14,12.98]
[1721953531682,6.589,173.24,173.11,15.8359]
[1721953531683,12.98,173.22,173.16,12.98]
[1721953531884,21.048,173.24,173.17,12.98]
[1721953532100,12.98,173.2,173.14,12.98]
[1721953532578,15.2755,173.24,173.13,12.98]
[1721953532579,12.98,173.19,173.13,12.98]
[1721953532691,12.98,173.19,173.11,15.8359]
[1721953532692,12.98,173.19,173.14,32.98]
[1721953532894,12.98,173.19,173.14,12.98]
[1721953533514,12.98,173.18,173.13,12.98]
[1721953533700,12.98,173.18,173.11,15.8359]
[1721953533701,12.98,173.18,173.12,12.98]
[1721953534415,12.98,173.17,173.11,12.98]
[1721953534607,12.98,173.16,173.1,12.98]
[1721953534793,12.98,173.16,173.11,20.0]
[1721953535003,12.98,173.16,173.1,12.98]
[1721953535192,12.98,173.16,173.09,6.4113]
[1721953535193,12.98,173.15,173.09,19.3913]
[1721953536094,18.7553,173.15,173.06,15.4042]
[1721953536294,18.7553,173.15,173.09,12.98]
[1721953536689,12.98,173.14,173.09,12.98]
[1721953538189,5.7753,173.15,173.09,12.98]
[1721953538393,12.98,173.14,173.09,12.98]
[1721953539116,12.98,173.14,173.08,12.98]
[1721953539527,12.98,173.12,173.05,6.3789]
[1721953539695,12.98,173.12,173.07,12.98]
[1721953539893,12.98,173.12,173.06,32.98]
[1721953540094,12.98,173.12,173.07,12.98]
[1721953540502,12.98,173.12,173.05,6.3789]
[1721953540503,12.98,173.11,173.06,12.98]
[1721953541396,12.98,173.1,173.05,12.98]
[1721953541595,12.98,173.1,173.01,24.28428872]
[1721953541832,12.98,173.1,173.05,12.98]
[1721953545829,12.98,173.1,173.02,45.0]
[1721953546000,12.98,173.1,173.05,12.98]
[1721953548606,66.3581,173.16,173.01,21.958]
[1721953548607,12.98,173.09,173.01,21.958]
[1721953548807,12.98,173.08,173.03,12.98]
[1721953549107,12.98,173.09,173.04,12.98]
[1721953551211,20.7754,173.14,173.04,12.98]
[1721953551212,5.7763,173.13,173.04,12.98]
[1721953551415,12.98,173.1,173.05,12.98]
[1721953552340,18.757,173.1,173.02,20.0]
[1721953552537,18.757,173.1,173.04,12.98]
[1721953553523,5.7766,173.12,173.04,12.98]
[1721953553720,12.98,173.1,173.05,12.98]
[1721953554826,12.98,173.09,173.02,20.0]
[1721953555032,18.7572,173.1,173.04,12.98]
[1721953555332,18.7573,173.09,173.04,12.98]
[1721953555657,15.5204,173.11,173.04,12.98]
[1721953555934,12.98,173.09,173.04,12.98]
[1721953558347,12.98,173.09,173.02,20.0]
[1721953558535,12.98,173.09,173.04,12.98]
[1721953558934,21.2971,173.11,173.02,20.0]
[1721953558935,12.98,173.05,173.02,20.0]
[1721953559126,18.7591,173.04,172.96,6.276]
[1721953559335,12.98,173.03,172.98,12.98]
[1721953559526,12.98,173.03,172.96,6.276]
[1721953559868,12.98,173.03,172.97,12.98]
[1721953560138,12.98,173.02,172.97,12.98]
[1721953560445,12.98,172.99,172.92,6.276]
[1721953560626,12.98,172.99,172.94,12.98]
[1721953560821,5.7794,173.03,172.95,12.98]
[1721953561040,12.98,173.0,172.95,12.98]
[1721953561418,12.98,173.0,172.92,6.276]
[1721953561419,12.98,172.99,172.94,12.98]
[1721953561627,12.98,172.99,172.92,6.276]
[1721953561950,12.98,172.98,172.93,12.98]
[1721953562132,14.4464,173.06,172.94,32.98]
[1721953562333,12.98,172.99,172.94,32.98]
[1721953564860,12.98,172.99,172.94,20.0]
[1721953565073,12.98,172.98,172.94,20.0]
[1721953565423,12.98,172.97,172.94,20.0]
[1721953565648,12.98,172.97,172.93,20.0]
[1721953566847,12.98,172.98,172.93,32.98]
[1721953567442,65.0,173.05,172.93,32.98]
[1721953567645,12.98,172.98,172.93,32.98]
[1721953568529,12.98,172.97,172.93,20.0]
[1721953569884,5.78,173.01,172.93,20.0]
[1721953569885,5.7803,173.01,172.93,20.0]
[1721953570054,12.98,172.97,172.92,20.0]
[1721953570456,12.98,172.97,172.92,32.98]
[1721953570643,12.98,172.97,172.94,5.7822]
[1721953571359,12.98,172.96,172.92,20.0]
[1721953571549,12.98,172.96,172.93,5.7826]
[1721953571754,12.98,172.96,172.94,20.0]
[1721953572262,12.98,172.96,172.92,20.0]
[1721953572765,12.98,172.95,172.91,0.82015]
[1721953573059,12.98,172.94,172.91,20.82015]
[1721953573268,12.98,172.94,172.92,20.0]
[1721953573459,12.98,172.95,172.91,0.82015]
[1721953573648,12.98,172.95,172.91,20.82015]
[1721953574274,12.98,172.95,172.91,0.82015]
[1721953574574,12.98,172.94,172.91,0.82015]
[1721953575496,12.98,172.95,172.91,0.82015]
[1721953575647,12.98,172.95,172.91,20.82015]
[1721953575842,12.98,172.96,172.91,20.82015]
[1721953576067,12.98,172.95,172.91,20.82015]
[1721953576273,6.3698,172.99,172.91,20.82015]
[1721953576274,12.98,172.94,172.91,0.82015]
[1721953576449,16.3778,172.96,172.91,0.82015]
[1721953576655,12.98,172.92,172.91,0.82015]
[1721953579373,12.98,172.92,172.91,0.32015]
[1721953580950,5.7821,172.95,172.91,0.32015]
[1721953581149,12.98,172.92,172.91,0.32015]
[1721953581351,18.763,172.92,172.91,0.32015]
[1721953582175,16.3778,172.96,172.87,18.7646]
[1721953582364,20.0,172.95,172.87,18.7646]
[1721953582674,12.98,172.93,172.87,18.7646]
[1721953582883,12.98,172.93,172.88,12.98]
[1721953583073,16.3778,172.96,172.84,6.2028]
[1721953583074,5.7834,172.91,172.84,6.2028]
[1721953583278,12.98,172.91,172.85,12.98]
[1721953583673,12.98,172.88,172.79,6.3953]
[1721953583857,5.7849,172.87,172.8,5.7868]
[1721953584185,18.7644,172.88,172.82,12.98]
[1721953584382,12.98,172.87,172.81,5.7863]
[1721953584676,12.98,172.87,172.82,12.98]
[1721953585054,12.98,172.87,172.81,5.7863]
[1721953585254,18.7637,172.9,172.84,12.98]
[1721953585473,29.9551,172.93,172.87,12.98]
[1721953585474,15.4978,172.93,172.87,12.98]
[1721953585776,12.98,172.92,172.87,12.98]
[1721953586158,12.98,172.92,172.8,51.92]
[1721953586364,15.4978,172.93,172.84,5.7853]
[1721953586663,18.7636,172.91,172.81,20.0]
[1721953586862,5.7836,172.91,172.85,12.98]
[1721953587092,18.7636,172.91,172.85,12.98]
[1721953587266,18.7636,172.9,172.84,12.98]
[1721953587469,12.98,172.88,172.83,12.98]
[1721953588271,12.98,172.89,172.84,12.98]
[1721953588982,18.7641,172.89,172.84,12.98]
[1721953590277,18.7647,172.87,172.8,20.0]
[1721953590454,12.98,172.87,172.82,12.98]
[1721953590657,15.4978,172.93,172.8,20.0]
[1721953590658,15.4978,172.93,172.86,12.98]
[1721953590879,18.7634,172.91,172.86,12.98]
[1721953591290,5.7837,172.9,172.86,12.98]
[1721953591666,18.7637,172.9,172.85,12.98]
[1721953591883,12.98,172.91,172.86,12.98]
[1721953592089,32.98,172.92,172.86,5.7849]
[1721953592401,38.763,172.92,172.87,12.98]
[1721953593481,5.7835,172.91,172.87,12.98]
[1721953593786,18.7635,172.91,172.86,12.98]
[1721953593988,5.7839,172.9,172.86,12.98]
[1721953594168,5.7839,172.9,172.83,5.7859]
[1721953594411,5.7839,172.9,172.86,12.98]
[1721953594568,5.7839,172.9,172.85,12.98]
[1721953594783,18.7634,172.91,172.85,12.98]
[1721953595180,15.4978,172.93,172.87,12.98]
[1721953595384,15.527,172.97,172.9,12.98]
[1721953595689,5.782,172.95,172.9,12.98]
[1721953597383,18.7617,172.96,172.9,12.98]
[1721953597573,5.7817,172.96,172.9,12.98]
[1721953597777,15.527,172.97,172.91,12.98]
[1721953598096,5.7811,172.98,172.94,12.98]
[1721953598398,5.7811,172.98,172.91,5.7833]
[1721953598399,21.9701,173.02,172.97,12.98]
[1721953598617,12.98,173.04,172.98,12.98]
[1721953598904,5.7787,173.05,173.0,12.98]
[1721953599184,21.9667,173.12,173.04,12.98]
[1721953599385,20.0,173.15,173.08,12.98]
[1721953599386,5.7756,173.15,173.08,12.98]
[1721953599629,12.98,173.15,173.09,12.98]
[1721953599794,12.98,173.14,173.09,12.98]
[1721953600382,12.98,173.15,173.1,12.98]
[1721953600580,18.7553,173.15,173.1,12.98]
[1721953600892,18.7553,173.15,173.02,7.82112915]
[1721953600893,12.98,173.14,173.08,12.98]
[1721953601067,12.98,173.13,173.08,12.98]
[1721953601591,18.7561,173.13,173.08,12.98]
[1721953601891,12.98,173.14,173.08,12.98]
[1721953602268,5.7756,173.15,173.03,27.15554008]
[1721953602599,15.5636,173.16,173.04,20.0]
[1721953603181,5.776,173.13,173.04,20.0]
[1721953603510,5.7756,173.14,173.04,20.0]
[1721953603671,15.5636,173.16,173.04,20.0]
[1721953603872,45.0,173.15,173.04,20.0]
[1721953604085,50.7756,173.15,173.04,20.0]
[1721953604787,5.7756,173.14,173.04,20.0]
[1721953605886,5.7762,173.13,173.04,20.0]
[1721953606067,5.7762,173.13,173.03,20.0]
[1721953607784,45.0,173.15,173.03,20.0]
[1721953607785,45.0,173.12,173.03,20.0]
[1721953608090,5.7766,173.12,173.03,20.0]
[1721953608774,5.7768,173.11,173.02,6.6657]
[1721953609281,5.7762,173.13,173.03,45.0]
[1721953609972,6.04051061,173.2,173.08,26.0]
[1721953610179,5.7737,173.2,173.09,21.15521569]
[1721953610397,5.7736,173.2,173.1,6.6578]
[1721953610697,5.7736,173.2,173.11,21.15509673]
[1721953610996,16.5976,173.27,173.16,26.0]
[1721953611205,16.5976,173.27,173.17,66.15456748]
[1721953611386,22.3692,173.27,173.17,20.0]
[1721953611789,22.3692,173.27,173.13,1.15451427]
[1721953611790,5.772,173.25,173.13,26.0]
[1721953612001,16.5976,173.27,173.14,20.0]
[1721953612185,16.5976,173.27,173.15,45.0]
[1721953612381,25.7719,173.26,173.15,45.0]
[1721953612587,25.7719,173.26,173.16,20.0]
[1721953613224,20.0,173.26,173.16,20.0]
[1721953613383,5.7726,173.24,173.15,45.0]
[1721953613582,5.7728,173.23,173.13,26.0]
[1721953613788,5.7728,173.23,173.14,20.0]
[1721953614218,5.7728,173.23,173.06,6.2295]
[1721953614219,46.0,173.23,173.06,6.2295]
[1721953614515,5.7739,173.2,173.06,32.2295]
[1721953615197,5.7741,173.19,173.06,32.2295]
[1721953615407,45.0,173.18,173.06,33.38469354]
[1721953615587,5.7749,173.17,173.06,33.38469354]
[1721953616005,45.0,173.18,173.06,32.2295]
[1721953616400,40.4349,173.2,173.06,32.2295]
[1721953616401,5.7754,173.15,173.06,32.2295]
[1721953616702,36.6035,173.17,173.06,32.2295]
[1721953616900,5.7754,173.15,173.06,32.2295]
[1721953617412,5.7754,173.15,173.07,20.0]
[1721953617793,5.775,173.16,173.07,20.0]
[1721953617995,36.6035,173.17,173.06,6.2295]
[1721953618194,45.0,173.16,173.06,6.2295]
[1721953618409,5.7759,173.14,173.06,6.2295]
[1721953620297,5.776,173.13,173.06,6.2295]
[1721953620504,45.0,173.16,173.06,6.2295]
[1721953620694,5.7757,173.14,173.06,6.2295]
[1721953621916,5.7763,173.13,173.06,6.2295]
[1721953622307,45.0,173.16,173.04,16.1422]
[1721953622308,5.7765,173.12,173.04,16.1422]
[1721953622911,5.776,173.13,173.04,16.1422]
[1721953623426,5.7766,173.12,173.04,16.1422]
[1721953623601,45.0,173.16,173.04,16.1422]
[1721953623602,5.7759,173.14,173.04,16.1422]
[1721953624321,45.0,173.16,173.04,16.1422]
[1721953624322,5.7763,173.13,173.04,16.1422]
[1721953624618,5.7765,173.12,173.04,16.1422]
[1721953624811,5.776,173.13,173.04,16.1422]
[1721953625113,6.04191625,173.15,173.02,6.5198]
[1721953625311,5.7773,173.09,173.03,20.0]
[1721953625709,5.7776,173.08,173.03,20.0]
[1721953625904,5.7773,173.1,173.03,20.0]
[1721953626107,79.4396,173.14,173.02,6.5198]
[1721953626108,5.7774,173.09,173.02,6.5198]
[1721953626413,5.7774,173.09,173.03,20.0]
[1721953626597,20.0,173.14,173.03,20.0]
[1721953626801,20.0,173.16,173.04,45.0]
[1721953627022,65.0,173.16,173.04,45.0]
[1721953627214,5.7759,173.14,173.04,45.0]
[1721953627421,5.776,173.13,173.03,20.0]
[1721953627727,20.0,173.16,173.05,26.0]
[1721953628100,5.7752,173.16,173.05,26.0]
[1721953628318,5.7752,173.16,173.05,27.15541631]
[1721953628919,5.7753,173.15,173.05,27.15541631]
[1721953629224,5.775,173.16,173.06,15.6127]
[1721953629436,16.6035,173.17,173.07,46.15537093]
[1721953629728,16.6035,173.17,173.07,45.0]
[1721953629963,5.7756,173.15,173.07,45.0]
[1721953630228,16.6035,173.17,173.06,35.6127]
[1721953630404,5.7756,173.15,173.06,35.6127]
[1721953630609,16.6035,173.17,173.06,15.6127]
[1721953630808,65.0,173.16,173.06,15.6127]
[1721953631001,5.7767,173.11,173.02,21.9235]
[1721953631413,5.777,173.1,173.02,21.9235]
[1721953632528,34.4397,173.14,173.02,21.9235]
[1721953632740,65.0,173.13,173.02,21.9235]
[1721953633718,65.0,173.13,173.02,6.5198]
[1721953634008,5.7777,173.08,173.02,6.5198]
[1721953635233,5.7784,173.06,173.02,6.5198]
[1721953635420,5.7784,173.06,172.98,42.6008]
[1721953635618,5.7784,173.06,172.98,16.6008]
[1721953636340,5.778,173.07,172.98,16.6008]
[1721953637735,5.7777,173.08,172.98,16.6008]
[1721953638627,50.778,173.07,172.98,16.6008]
[1721953639011,15.4902,173.09,172.98,16.6008]
[1721953639219,20.0,173.08,172.98,16.6008]
[1721953639526,16.1239,173.13,172.99,26.0]
[1721953639731,5.7764,173.12,173.0,65.0]
[1721953640346,5.7767,173.11,173.0,65.0]
[1721953641020,20.0,173.1,173.0,65.0]
[1721953642131,16.1239,173.13,173.0,20.0]
[1721953642132,20.0,173.12,173.0,20.0]
[1721953642307,50.7767,173.11,173.0,20.0]
[1721953642515,20.0,173.1,173.0,20.0]
[1721953642740,20.0,173.12,173.02,26.0]
[1721953643017,25.7766,173.12,173.02,26.0]
[1721953643413,25.7766,173.12,173.01,45.0]
[1721953644214,16.1239,173.13,173.02,20.0]
[1721953644414,5.7751,173.16,173.05,26.0]
[1721953644643,22.4303,173.18,173.05,26.0]
[1721953644644,15.7985,173.18,173.06,37.59240514]
[1721953644822,5.7749,173.17,173.06,37.59240514]
[1721953645028,15.7985,173.18,173.06,37.59240514]
[1721953645029,5.7751,173.16,173.06,17.59240514]
[1721953645224,5.7747,173.17,173.08,26.0]
[1721953645427,5.7747,173.17,173.08,27.15530601]
[1721953646716,380.5,173.21,173.09,6.1726]
[1721953646922,20.0,173.2,173.11,26.0]
[1721953647742,380.5,173.21,173.12,20.0]
[1721953647947,15.7985,173.22,173.12,20.0]
[1721953648151,5.7737,173.2,173.13,1.15503944]
[1721953648457,14.4334,173.21,173.09,6.1726]
[1721953648748,15.7985,173.22,173.09,6.1726]
[1721953648749,5.7742,173.19,173.1,20.0]
[1721953650016,5.7736,173.21,173.1,21.1551179]
[1721953650221,5.773,173.22,173.11,45.0]
[1721953650450,20.0,173.21,173.11,46.15503826]
[1721953650825,25.7734,173.21,173.11,46.15503826]
[1721953651032,5.7734,173.21,173.12,20.0]
[1721953652351,5.7736,173.2,173.11,45.0]
[1721953652647,5.7733,173.21,173.1,45.0]
[1721953652837,5.7733,173.21,173.12,26.0]
[1721953653034,5.7729,173.23,173.13,15.4617]
[1721953653239,5.7727,173.23,173.14,20.0]
[1721953653438,256.6,173.3,173.16,6.3241]
[1721953653621,10.41166847,173.29,173.18,26.0]
[1721953653827,5.7712,173.28,173.19,1.15459423]
[1721953654247,5.7712,173.28,173.19,21.15459423]
[1721953654423,5.7712,173.28,173.19,20.0]
[1721953654848,5.7712,173.28,173.2,1.15453518]
[1721953655551,15.3887,173.31,173.19,20.0]
[1721953655738,85.0,173.3,173.16,6.3241]
[1721953655939,5.772,173.25,173.17,20.0]
[1721953656545,5.7715,173.27,173.17,20.0]
[1721953657549,79.4263,173.3,173.16,6.3241]
[1721953657737,5.7724,173.24,173.16,6.3241]
[1721953658556,5.7718,173.26,173.16,6.3241]
[1721953658731,25.772,173.25,173.16,6.3241]
[1721953659242,5.7724,173.24,173.16,6.3241]
[1721953659967,5.771,173.28,173.17,46.15468684]
[1721953660147,25.7714,173.27,173.17,45.0]
[1721953660346,20.0,173.3,173.16,6.3241]
[1721953660347,5.772,173.25,173.16,6.3241]
[1721953660552,20.0,173.3,173.16,6.3241]
[1721953660553,5.7723,173.24,173.17,20.0]
[1721953661040,5.7727,173.23,173.16,6.3241]
[1721953661241,5.7724,173.24,173.16,6.3241]
[1721953661758,14.4272,173.29,173.16,6.3241]
[1721953661949,5.772,173.25,173.16,6.3241]
[1721953662346,14.4272,173.29,173.17,45.0]
[1721953662663,20.0,173.3,173.17,45.0]
[1721953662960,5.7703,173.3,173.19,15.3412]
[1721953663142,5.7703,173.3,173.2,46.15438838]
[1721953663349,5.7703,173.3,173.21,21.15438796]
[1721953663539,5.7703,173.3,173.21,20.0]
[1721953664433,5.7706,173.29,173.21,20.0]
[1721953666962,5.7714,173.27,173.21,20.0]
[1721953667163,15.3887,173.31,173.21,20.0]
[1721953667340,15.3887,173.31,173.2,20.0]
[1721953667544,45.0,173.3,173.2,20.0]
[1721953667741,5.7713,173.28,173.2,20.0]
[1721953668143,5.7713,173.28,173.19,15.3412]
[1721953668457,5.7714,173.27,173.19,15.3412]
[1721953668655,5.7717,173.26,173.15,42.4351]
[1721953669461,5.7717,173.26,173.09,6.2034]
[1721953669462,6.2675,173.26,173.09,6.2034]
[1721953669633,6.2675,173.26,173.1,26.0]
[1721953669634,5.7738,173.2,173.1,26.0]
[1721953669839,5.7741,173.19,173.1,26.0]
[1721953670663,5.7744,173.18,173.1,26.0]
[1721953671661,30.4575,173.23,173.1,26.0]
[1721953671844,5.7747,173.17,173.1,26.0]
[1721953672863,5.7742,173.19,173.1,26.0]
[1721953673067,20.0,173.22,173.1,26.0]
[1721953673358,16.0254,173.23,173.11,21.15508112]
[1721953673539,15.7058,173.27,173.14,6.4607]
[1721953673760,5.7717,173.26,173.17,26.0]
[1721953673968,15.81033611,173.31,173.17,26.0]
[1721953674146,5.7719,173.26,173.17,26.0]
[1721953674348,5.7729,173.23,173.17,26.0]
[1721953674538,5.7729,173.23,173.16,15.7246]
[1721953675467,14.4283,173.28,173.16,15.7246]
[1721953675644,20.0,173.27,173.16,15.7246]
[1721953675851,45.0,173.26,173.16,15.7246]
[1721953677067,5.773,173.22,173.16,15.7246]
[1721953677371,5.773,173.22,173.14,32.4607]
[1721953677549,5.7734,173.21,173.14,6.4607]
[1721953678040,59.4296,173.26,173.14,6.4607]
[1721953678244,5.7731,173.22,173.14,6.4607]
[1721953678457,59.4296,173.26,173.14,6.4607]
[1721953678458,5.7733,173.21,173.14,6.4607]
[1721953680166,5.7731,173.22,173.14,6.4607]
[1721953680876,5.7734,173.21,173.14,6.4607]
[1721953681083,5.7731,173.22,173.14,6.4607]
[1721953681454,5.7727,173.23,173.14,6.4607]
[1721953683182,15.1584,173.23,173.14,6.4607]
[1721953683361,5.7748,173.17,173.1,6.3993]
[1721953684260,65.0,173.22,173.1,6.3993]
[1721953684472,5.7742,173.19,173.1,6.3993]
[1721953684679,85.0,173.22,173.1,6.3993]
[1721953684859,65.0,173.22,173.1,6.3993]
[1721953685476,5.7745,173.18,173.1,6.3993]
[1721953686379,5.7746,173.17,173.1,6.3993]
[1721953686881,5.7744,173.18,173.1,6.3993]
[1721953687183,5.7739,173.2,173.1,6.3993]
[1721953687483,50.7742,173.19,173.1,6.3993]
[1721953688280,5.7743,173.18,173.1,6.3993]
[1721953688781,5.7746,173.17,173.1,6.3993]
[1721953690173,45.0,173.19,173.1,6.3993]
[1721953690366,5.7755,173.15,173.1,6.3993]
[1721953690564,5.7755,173.15,173.08,15.9933]
[1721953691180,5.776,173.13,173.08,15.9933]
[1721953691359,5.7757,173.14,173.08,15.9933]
[1721953692896,10.41671501,173.18,173.08,15.9933]
[1721953692897,5.776,173.13,173.08,15.9933]
[1721953693059,5.7773,173.09,173.07,6.3577]
[1721953693258,5.7773,173.09,173.04,15.1166]
[1721953693259,5.7771,173.1,173.04,15.1166]
[1721953693767,5.7766,173.11,173.04,15.1166]
[1721953694087,5.7763,173.12,173.04,15.1166]
[1721953694581,5.776,173.13,173.04,15.1166]
[1721953694899,15.7353,173.15,173.04,15.1166]
[1721953695070,45.0,173.14,173.04,15.1166]
[1721953695384,5.777,173.1,173.04,15.1166]
[1721953696367,45.0,173.09,173.03,6.1326]
[1721953696970,5.7783,173.06,172.99,15.1763]
[1721953697165,5.7782,173.07,172.99,15.1763]
[1721953697971,5.7776,173.09,172.99,15.1763]
[1721953698382,5.777,173.1,172.99,16.33207665]
[1721953698566,5.7767,173.11,173.02,6.0375]
[1721953698980,5.7763,173.12,173.02,6.0375]
[1721953699185,45.0,173.11,173.02,6.0375]
[1721953699971,50.7767,173.11,173.02,6.0375]
[1721953700170,5.7762,173.13,173.02,6.0375]
[1721953700370,5.7764,173.12,173.02,6.0375]
[1721953701172,5.7766,173.11,173.02,6.0375]
[1721953705027,5.7773,173.09,173.02,6.0375]
[1721953705292,14.4397,173.14,173.02,6.0375]
[1721953705481,5.778,173.07,173.02,6.0375]
[1721953705686,45.0,173.13,173.02,6.0375]
[1721953705879,5.7776,173.08,173.02,6.0375]
[1721953706274,5.778,173.07,173.02,6.0375]
[1721953707196,5.7777,173.08,173.02,6.0375]
[1721953707399,45.0,173.13,173.02,6.0375]
[1721953707574,20.0,173.12,173.02,6.0375]
[1721953708223,20.0,173.13,173.02,6.0375]
[1721953708504,5.7766,173.11,173.02,6.0375]
[1721953712428,20.0,173.13,173.02,6.0375]
[1721953712429,5.7771,173.1,173.02,6.0375]
[1721953712597,20.0,173.13,173.02,6.0375]
[1721953713597,5.7779,173.08,173.02,6.0375]
[1721953713799,14.4417,173.11,173.02,6.0375]
[1721953714104,5.7783,173.06,173.02,6.0375]
[1721953714977,5.778,173.07,173.02,6.0375]
[1721953717993,5.7777,173.08,173.02,6.0375]
[1721953718386,5.778,173.07,173.02,6.0375]
[1721953719689,20.46113285,173.14,173.02,6.0375]
[1721953719889,5.7764,173.12,173.02,6.0375]
[1721953720101,5.7761,173.13,173.02,6.0375]
[1721953720605,5.7763,173.12,173.02,6.0375]
[1721953722105,271.0369,173.17,173.02,6.0375]
[1721953722309,5.7763,173.12,173.02,6.0375]
[1721953722495,14.4398,173.14,173.02,6.0375]
[1721953722804,5.778,173.07,173.02,6.0375]
[1721953723006,5.7784,173.06,173.02,6.0375]
[1721953723210,14.4414,173.12,173.02,6.0375]
[1721953723401,45.0,173.11,173.02,6.0375]
[1721953723705,5.7781,173.07,173.02,6.0375]
[1721953724408,14.4432,173.1,173.02,6.0375]
[1721953724587,5.7785,173.06,173.02,6.0375]
[1721953724788,34.4432,173.1,173.02,6.0375]
[1721953725024,5.7794,173.03,172.99,15.1763]
[1721953725305,5.7799,173.02,172.97,6.282]
[1721953725912,5.7794,173.03,172.97,6.282]
[1721953726216,5.7797,173.02,172.97,6.282]
[1721953726892,5.779,173.04,172.97,6.282]
[1721953727098,5.7793,173.03,172.97,6.282]
[1721953729914,5.7797,173.02,172.97,6.282]
[1721953730799,14.4465,173.06,172.97,6.282]